bitfinex-derivatives/quotes_SOLF0:USTF0_20250829
["timestamp","ask_amount","ask_price","bid_price","bid_amount"]
[1756478208781,7.02,210.15,209.99,11.13463036]
[1756478208987,7.02,210.18,209.99,110.35463036]
[1756478209582,7.02,210.18,209.99,11.13463036]
[1756478209783,14.28,210.19,209.99,11.13463036]
[1756478210076,7.02,210.17,209.99,11.13463036]
[1756478210286,11.13463036,210.21,209.99,11.13463036]
[1756478210287,14.28,210.18,209.99,11.13463036]
[1756478210487,7.02,210.16,209.99,11.13463036]
[1756478210688,7.02,210.15,209.99,11.13463036]
[1756478211286,11.13463036,210.17,209.99,11.13463036]
[1756478211287,7.02,210.16,209.99,11.13463036]
[1756478211485,7.02,210.15,209.99,11.13463036]
[1756478211791,7.02,210.15,209.91,320.14]
[1756478211792,7.02,210.12,209.95,11.13463036]
[1756478211994,11.13463036,210.13,209.95,11.13463036]
[1756478212185,7.02,210.12,209.93,0.03]
[1756478212385,21.3,210.12,209.93,0.03]
[1756478212582,7.02,210.1,209.93,0.03]
[1756478212791,7.02,210.08,209.93,0.03]
[1756478213287,7.02,210.08,209.91,320.14]
[1756478213495,7.02,210.04,209.87,0.03]
[1756478214281,2.335003,210.03,209.87,0.03]
[1756478214492,7.02,210.02,209.87,0.03]
[1756478214787,14.28,210.09,209.81,0.03]
[1756478214788,11.13463036,209.97,209.81,0.03]
[1756478214992,11.13463036,209.97,209.79,11.13463036]
[1756478215192,7.02,209.95,209.79,11.13463036]
[1756478215692,7.02,209.95,209.8,0.03]
[1756478217589,7.02,209.95,209.76,11.13463036]
[1756478217790,7.02,209.91,209.74,0.03]
[1756478218893,7.02,209.91,209.76,11.13463036]
[1756478219388,7.02,209.91,209.77,0.03]
[1756478220195,11.13463036,209.97,209.8,11.13463036]
[1756478220196,7.02,209.96,209.8,11.13463036]
[1756478220390,7.02,209.96,209.81,0.03]
[1756478221189,320.02,209.99,209.74,3.93983373]
[1756478221190,7.02,209.95,209.74,3.93983373]
[1756478221393,11.13463036,209.89,209.7,319.96]
[1756478221595,7.02,209.88,209.71,0.03]
[1756478222295,11.13463036,209.85,209.7,319.96]
[1756478222496,7.02,209.79,209.65,0.03]
[1756478223494,11.13463036,209.84,209.67,0.03]
[1756478223694,7.02,209.84,209.68,0.03]
[1756478224899,7.02,209.84,209.72,0.03]
[1756478225496,7.02,209.84,209.75,11.13463036]
[1756478225795,7.02,209.92,209.75,11.13463036]
[1756478225997,7.02,209.95,209.75,11.13463036]
[1756478226294,7.02,209.95,209.72,0.03]
[1756478226501,26.5,209.96,209.74,11.13463036]
[1756478226702,11.13463036,209.93,209.72,0.03]
[1756478226894,11.13463036,209.85,209.68,10.16]
[1756478227500,11.13463036,209.85,209.66,0.04]
[1756478227798,7.74,209.84,209.66,0.04]
[1756478227994,22.02,209.84,209.66,0.04]
[1756478228896,11.13463036,209.73,209.56,3.95573356]
[1756478229096,22.02,209.72,209.54,0.04]
[1756478229295,22.02,209.72,209.47,6.98]
[1756478229296,11.13463036,209.69,209.49,11.13463036]
[1756478229495,7.74,209.67,209.49,11.13463036]
[1756478230096,7.74,209.67,209.5,0.04]
[1756478230700,7.74,209.64,209.42,0.04]
[1756478230891,22.02,209.64,209.43,0.04]
[1756478231092,7.74,209.64,209.52,0.04]
[1756478231604,7.74,209.72,209.59,11.13463036]
[1756478231798,7.74,209.72,209.6,0.04]
[1756478231995,11.13463036,209.81,209.55,320.28]
[1756478231996,7.74,209.81,209.55,320.28]
[1756478232195,7.74,209.74,209.55,320.28]
[1756478233302,36.32,209.82,209.55,320.28]
[1756478233303,14.28,209.76,209.55,450.74]
[1756478233896,7.74,209.75,209.55,450.74]
[1756478234298,7.74,209.75,209.56,0.04]
[1756478234503,7.74,209.75,209.58,0.04]
[1756478234706,7.74,209.75,209.58,18.67688276]
[1756478235005,7.74,209.75,209.59,0.04]
[1756478235702,22.02,209.79,209.59,0.04]
[1756478236399,7.74,209.79,209.59,0.04]
[1756478237103,7.74,209.79,209.64,0.07]
[1756478237500,7.74,209.79,209.6,101.72]
[1756478237999,14.28,209.78,209.58,18.70688276]
[1756478238198,14.28,209.78,209.59,130.48]
[1756478238603,22.02,209.76,209.58,0.07]
[1756478238902,7.74,209.74,209.58,18.70688276]
[1756478239102,7.74,209.74,209.59,0.07]
[1756478239606,7.74,209.74,209.64,0.07]
[1756478239804,18.63688276,209.85,209.64,0.07]
[1756478239805,136.94,209.84,209.64,0.07]
[1756478240005,129.2,209.84,209.64,130.55]
[1756478240201,7.74,209.83,209.64,130.55]
[1756478240403,7.74,209.84,209.64,130.55]
[1756478240600,7.74,209.86,209.64,130.55]
[1756478240902,7.74,209.85,209.64,130.55]
[1756478241205,144.76,209.86,209.64,130.55]
[1756478241699,144.76,209.86,209.68,18.63688276]
[1756478242098,14.28,209.91,209.68,18.63688276]
[1756478242304,7.74,209.86,209.68,18.63688276]
[1756478242501,14.28,209.85,209.68,18.63688276]
[1756478242708,22.02,209.82,209.64,0.07]
[1756478243006,7.74,209.8,209.64,0.07]
[1756478245104,7.74,209.86,209.69,0.07]
[1756478246304,14.28,209.86,209.65,24.99688276]
[1756478246515,7.74,209.85,209.65,24.99688276]
[1756478246812,7.74,209.85,209.66,0.07]
[1756478248913,7.74,209.85,209.67,17.62]
[1756478249113,7.74,209.88,209.67,17.62]
[1756478249721,7.74,209.88,209.68,0.07]
[1756478249929,130.46,209.89,209.68,22.79]
[1756478250224,7.74,209.88,209.71,0.07]
[1756478253525,7.74,209.88,209.77,11.12635764]
[1756478255726,7.74,209.88,209.78,0.07]
[1756478255927,99.26,209.95,209.81,11.12635764]
[1756478255928,7.74,209.94,209.81,11.12635764]
[1756478256324,7.74,209.94,209.82,0.07]
[1756478259825,7.74,209.94,209.85,11.12635764]
[1756478262026,7.27,210.03,209.86,0.03]
[1756478262927,7.27,210.03,209.89,11.12635764]
[1756478263632,7.27,210.03,209.9,0.03]
[1756478264625,7.27,210.03,209.85,26.92621367]
[1756478264626,7.27,210.03,209.94,0.03]
[1756478265731,7.27,210.13,209.94,0.03]
[1756478265936,7.27,210.15,209.97,11.15635764]
[1756478266235,25.40635764,210.16,209.97,11.15635764]
[1756478266533,7.27,210.15,209.97,11.15635764]
[1756478266832,11.12635764,210.17,209.97,11.15635764]
[1756478267032,320.2,210.2,210.01,11.12635764]
[1756478267232,7.27,210.19,210.01,11.12635764]
[1756478267534,320.2,210.2,210.01,11.12635764]
[1756478267734,7.27,210.19,210.01,11.12635764]
[1756478268131,7.27,210.15,209.94,0.03]
[1756478268336,14.28,210.15,209.95,11.12635764]
[1756478268640,7.27,210.12,209.95,11.12635764]
[1756478268833,7.27,210.11,209.95,11.12635764]
[1756478269339,7.27,210.13,209.95,11.12635764]
[1756478269536,141.36635764,210.14,209.95,11.12635764]
[1756478269936,7.27,210.13,209.95,11.12635764]
[1756478270331,130.24,210.14,209.92,11.12635764]
[1756478270332,11.12635764,210.11,209.92,11.12635764]
[1756478270534,7.27,210.09,209.93,0.03]
[1756478270732,7.27,210.09,210.0,11.12635764]
[1756478270936,48.0,210.16,210.0,11.12635764]
[1756478271238,7.27,210.15,210.01,0.03]
[1756478271439,7.27,210.15,210.04,11.12635764]
[1756478271835,320.2,210.2,210.08,11.12635764]
[1756478272032,7.27,210.2,210.08,11.12635764]
[1756478273138,7.27,210.22,210.05,0.03]
[1756478275538,7.27,210.22,210.08,11.12635764]
[1756478275838,7.27,210.22,210.09,0.03]
[1756478276141,0.8281672,210.26,210.13,0.03]
[1756478276341,7.27,210.27,210.13,0.03]
[1756478277245,25.40635764,210.3,210.09,11.12635764]
[1756478277543,25.40635764,210.3,210.09,11.15635764]
[1756478277741,7.27,210.29,210.09,11.15635764]
[1756478278144,25.40635764,210.3,210.09,11.15635764]
[1756478278534,25.40635764,210.3,210.09,0.03]
[1756478278741,7.27,210.25,210.09,0.03]
[1756478279041,109.6,210.25,210.06,11.12635764]
[1756478279234,7.27,210.24,210.06,11.12635764]
[1756478279541,7.27,210.21,210.04,0.03]
[1756478280639,11.12635764,210.19,210.0,320.0]
[1756478280845,7.27,210.14,209.98,0.03]
[1756478281142,7.27,210.14,210.0,11.12635764]
[1756478281439,7.27,210.42,210.13,22.25271528]
[1756478281634,7.27,210.42,210.26,11.12635764]
[1756478281834,7.27,210.42,210.24,11.12635764]
[1756478283150,319.88,210.49,210.28,11.12635764]
[1756478283445,7.27,210.49,210.36,11.12635764]
[1756478284239,7.27,210.54,210.36,11.12635764]
[1756478284443,146.47,210.54,210.36,11.12635764]
[1756478284744,146.47,210.54,210.25,28.06]
[1756478284946,99.86,210.53,210.36,11.12635764]
[1756478285141,7.27,210.52,210.36,11.12635764]
[1756478285744,146.27,210.52,210.36,11.12635764]
[1756478285942,146.21,210.52,210.36,11.12635764]
[1756478286142,7.27,210.52,210.36,11.12635764]
[1756478286740,0.82696672,210.56,210.4,11.12635764]
[1756478286942,7.22,210.59,210.38,11.12635764]
[1756478287143,458.66,210.6,210.38,11.12635764]
[1756478287444,7.22,210.59,210.38,11.12635764]
[1756478287642,138.66,210.58,210.38,11.12635764]
[1756478287843,138.66,210.58,210.29,319.7]
[1756478288043,7.22,210.56,210.36,11.12635764]
[1756478288244,7.22,210.56,210.29,319.7]
[1756478288245,7.22,210.56,210.34,11.12635764]
[1756478288848,11.12635764,210.57,210.34,11.12635764]
[1756478289049,7.22,210.56,210.34,11.12635764]
[1756478289447,7.22,210.57,210.31,18.49506942]
[1756478290345,138.3,210.56,210.31,18.49506942]
[1756478290546,7.22,210.55,210.31,18.49506942]
[1756478290744,14.28,210.55,210.31,18.49506942]
[1756478290942,7.22,210.54,210.31,18.49506942]
[1756478291148,18.49506942,210.48,210.23,18.49506942]
[1756478291349,7.22,210.45,210.18,18.49506942]
[1756478291644,319.56,210.44,210.18,18.49506942]
[1756478291845,7.22,210.43,210.18,18.49506942]
[1756478292246,7.22,210.42,210.18,18.49506942]
[1756478292448,32.77506942,210.43,210.18,18.49506942]
[1756478292746,14.28,210.42,210.18,18.49506942]
[1756478293048,152.26,210.41,210.18,18.49506942]
[1756478293449,152.26,210.41,210.14,149.4817172]
[1756478293450,7.22,210.37,210.14,149.4817172]
[1756478293848,7.22,210.35,210.14,149.4817172]
[1756478294241,7.22,210.33,210.14,149.4817172]
[1756478294444,7.22,210.41,210.18,18.49506942]
[1756478294747,137.9,210.4,210.18,18.49506942]
[1756478295045,7.22,210.41,210.23,18.49506942]
[1756478295346,7.22,210.41,210.14,149.4817172]
[1756478295347,7.22,210.41,210.18,18.49506942]
[1756478295548,14.28,210.41,210.18,18.49506942]
[1756478295749,7.22,210.37,210.14,137.0017172]
[1756478295950,18.49506942,210.38,210.13,18.49506942]
[1756478296145,7.22,210.37,210.13,18.49506942]
[1756478296542,32.77506942,210.38,210.13,18.49506942]
[1756478296741,14.28,210.36,210.09,18.49506942]
[1756478296948,7.22,210.32,210.07,80.84]
[1756478297154,14.28,210.32,210.06,18.49506942]
[1756478297351,21.5,210.31,210.06,18.49506942]
[1756478297554,32.77506942,210.28,210.05,319.54]
[1756478297750,7.22,210.26,210.05,319.54]
[1756478298052,137.92,210.27,210.01,18.49506942]
[1756478298249,7.22,210.26,210.01,18.49506942]
[1756478298649,32.77506942,210.28,210.01,18.49506942]
[1756478298852,119.6,210.27,210.01,18.49506942]
[1756478299456,7.22,210.26,210.01,18.49506942]
[1756478299755,7.22,210.34,210.13,18.49506942]
[1756478300159,26.33506942,210.35,210.09,18.49506942]
[1756478300354,7.22,210.34,210.09,18.49506942]
[1756478300547,26.33506942,210.35,210.09,18.49506942]
[1756478300745,7.22,210.29,209.95,3.86509129]
[1756478301051,18.49506942,210.25,210.01,18.49506942]
[1756478301252,11.16,210.24,210.01,18.49506942]
[1756478301746,11.16,210.24,209.92,319.56]
[1756478301747,7.22,210.23,209.96,18.49506942]
[1756478301952,7.22,210.19,209.96,18.49506942]
[1756478302152,7.22,210.18,209.93,78.96]
[1756478302352,18.49506942,210.15,209.92,319.56]
[1756478302547,7.22,210.14,209.99,18.49506942]
[1756478302953,7.22,210.14,209.94,18.49506942]
[1756478303154,7.22,210.18,209.94,157.11506942]
[1756478303357,7.22,210.19,209.92,319.56]
[1756478303757,14.28,210.18,209.95,18.49506942]
[1756478303957,7.22,210.19,209.95,18.49506942]
[1756478304357,7.22,210.19,209.92,319.56]
[1756478304358,7.22,210.19,210.0,18.49506942]
[1756478304557,7.22,210.19,210.0,157.05506942]
[1756478305057,7.22,210.19,209.92,319.56]
[1756478305058,21.5,210.2,209.97,18.49506942]
[1756478305453,7.22,210.2,209.97,18.49506942]
[1756478305754,36.44,210.2,209.97,18.49506942]
[1756478306960,7.22,210.18,209.97,18.49506942]
[1756478307458,38.1,210.17,209.97,18.49506942]
[1756478308054,7.22,210.16,209.97,18.49506942]
[1756478309154,18.49506942,210.15,209.92,338.05506942]
[1756478309361,32.77506942,210.1,209.84,18.49506942]
[1756478309662,7.22,210.08,209.85,137.98]
[1756478309858,7.22,210.06,209.85,137.98]
[1756478310062,7.22,210.06,209.84,18.49506942]
[1756478310360,14.28,210.04,209.75,3.86509129]
[1756478310561,7.22,210.01,209.77,18.49506942]
[1756478310764,7.22,209.99,209.77,18.49506942]
[1756478311066,14.28,210.0,209.77,18.49506942]
[1756478311365,7.22,209.96,209.74,18.49506942]
[1756478311562,22.04,209.95,209.74,18.49506942]
[1756478311768,137.88,209.95,209.74,18.49506942]
[1756478311969,137.88,209.95,209.69,159.18613794]
[1756478312166,7.22,209.93,209.7,137.92]
[1756478312562,137.84,209.92,209.74,18.49506942]
[1756478312762,7.22,209.93,209.74,18.49506942]
[1756478313368,7.22,209.93,209.79,18.49506942]
[1756478313566,137.84,209.98,209.8,137.84]
[1756478313965,319.8,209.99,209.8,137.84]
[1756478314167,319.8,209.99,209.84,18.49506942]
[1756478314367,319.8,209.99,209.69,140.69106852]
[1756478314368,7.22,209.98,209.75,18.49506942]
[1756478314568,7.22,209.98,209.76,73.52]
[1756478314871,7.22,209.98,209.8,18.49506942]
[1756478315764,7.22,209.98,209.7,3.86509129]
[1756478315965,7.22,209.98,209.77,18.49506942]
[1756478316668,7.22,209.98,209.69,140.69106852]
[1756478316669,144.99,209.98,209.76,12.38]
[1756478317166,137.62,209.98,209.75,18.49506942]
[1756478317365,137.62,209.98,209.73,39.56]
[1756478317366,7.37,209.95,209.73,39.56]
[1756478317764,137.54,209.94,209.73,39.56]
[1756478318968,7.37,209.95,209.75,18.49506942]
[1756478319768,7.37,209.95,209.76,137.32]
[1756478320974,7.37,210.0,209.8,18.49506942]
[1756478321365,7.37,210.0,209.81,103.6]
[1756478323268,7.37,210.0,209.8,18.49506942]
[1756478323562,14.28,210.01,209.8,18.49506942]
[1756478323970,7.37,210.0,209.8,18.49506942]
[1756478324175,14.28,210.01,209.8,18.49506942]
[1756478324377,7.37,209.99,209.8,18.49506942]
[1756478324572,14.28,209.98,209.75,18.49506942]
[1756478324770,7.37,209.96,209.75,98.69506942]
[1756478325278,7.37,209.96,209.75,18.49506942]
[1756478325469,14.28,209.95,209.75,18.49506942]
[1756478325674,14.28,209.94,209.73,105.26]
[1756478325874,85.53,209.93,209.73,105.26]
[1756478326077,78.16,209.93,209.71,136.74]
[1756478326374,92.44,209.93,209.71,136.74]
[1756478326569,7.37,209.92,209.71,136.74]
[1756478326767,92.44,209.93,209.71,136.74]
[1756478326966,7.37,209.92,209.71,136.74]
[1756478327575,7.37,209.91,209.7,18.49506942]
[1756478327776,14.28,209.89,209.66,456.54]
[1756478327976,14.28,209.88,209.66,456.54]
[1756478328170,7.37,209.87,209.66,456.54]
[1756478328379,7.37,209.86,209.66,320.08]
[1756478328588,136.4,209.85,209.66,320.08]
[1756478329573,7.37,209.84,209.66,320.08]
[1756478329774,7.37,209.84,209.66,456.38]
[1756478329973,7.37,209.84,209.66,456.36]
[1756478330176,136.4,209.85,209.66,456.36]
[1756478330375,7.37,209.84,209.66,456.36]
[1756478330874,7.37,209.92,209.7,18.49506942]
[1756478331074,7.37,209.92,209.66,456.36]
[1756478331075,7.37,209.92,209.72,18.49506942]
[1756478331277,7.37,209.92,209.73,136.44]
[1756478332082,7.37,209.92,209.72,18.49506942]
[1756478332476,7.37,209.92,209.73,136.28]
[1756478333272,7.37,209.92,209.67,62.0]
[1756478333483,7.37,209.92,209.72,18.49506942]
[1756478334583,470.54,209.93,209.73,136.1]
[1756478334785,7.37,209.91,209.72,136.04]
[1756478334983,14.28,209.92,209.67,18.49506942]
[1756478335187,7.37,209.91,209.68,135.98]
[1756478335581,7.37,209.91,209.67,18.49506942]
[1756478335785,7.37,209.91,209.68,135.9]
[1756478336187,21.65,209.98,209.72,18.49506942]
[1756478336391,14.16,209.99,209.77,18.49506942]
[1756478336591,14.16,209.98,209.78,82.12]
[1756478336889,7.37,209.97,209.78,65.8]
[1756478339093,7.37,209.97,209.81,18.49506942]
[1756478339290,7.37,209.97,209.78,65.8]
[1756478339486,7.37,209.97,209.82,18.49506942]
[1756478340087,7.0,210.01,209.82,18.49506942]
[1756478340284,7.37,210.02,209.82,18.49506942]
[1756478340489,7.37,210.02,209.83,56.88]
[1756478340690,7.37,210.02,209.85,18.49506942]
[1756478341494,7.37,210.02,209.86,135.56]
[1756478341698,7.37,210.07,209.87,135.52]
[1756478342993,7.37,210.07,209.9,18.49506942]
[1756478343590,7.37,210.13,209.95,18.49506942]
[1756478343794,7.37,210.13,209.96,98.92]
[1756478344197,7.37,210.2,210.0,18.49506942]
[1756478345097,7.37,210.2,210.01,135.2]
[1756478345294,7.37,210.2,210.02,135.22]
[1756478346094,7.37,210.2,210.0,18.49506942]
[1756478346400,7.37,210.19,210.0,18.49506942]
[1756478346602,7.37,210.19,209.99,135.24]
[1756478346603,7.53,210.2,209.99,135.24]
[1756478347101,10.76,210.21,209.99,135.24]
[1756478347298,7.53,210.19,209.98,135.02]
[1756478347796,135.0,210.18,209.98,135.02]
[1756478347991,7.53,210.17,209.98,135.02]
[1756478350500,7.53,210.24,210.04,18.49506942]
[1756478350698,7.53,210.24,210.05,134.64]
[1756478351397,7.53,210.24,210.04,18.49506942]
[1756478351599,7.53,210.24,210.05,104.48]
[1756478352904,7.53,210.24,210.09,18.49506942]
[1756478353400,49.15,210.31,210.09,18.49506942]
[1756478353701,7.53,210.3,210.1,81.42]
[1756478354705,41.62,210.31,210.09,18.49506942]
[1756478354897,7.53,210.3,210.07,32.87506942]
[1756478355205,41.62,210.31,210.07,18.49506942]
[1756478355405,7.53,210.3,210.07,18.49506942]
[1756478355701,7.53,210.3,210.08,11.86]
[1756478355899,18.49506942,210.3,210.07,18.49506942]
[1756478356100,32.77506942,210.3,210.07,18.49506942]
[1756478356305,7.53,210.29,210.07,18.49506942]
[1756478356504,32.77506942,210.3,210.07,18.49506942]
[1756478356705,7.53,210.29,210.07,18.49506942]
[1756478356903,32.77506942,210.3,210.07,18.49506942]
[1756478357806,32.77506942,210.3,210.07,30.29506942]
[1756478358000,21.81,210.29,210.07,30.29506942]
[1756478358308,7.53,210.28,210.07,30.29506942]
[1756478359105,7.53,210.28,210.07,18.49506942]
[1756478359706,7.53,210.28,210.08,11.76]
[1756478360105,7.53,210.28,210.07,18.49506942]
[1756478360305,7.53,210.28,210.08,11.76]
[1756478360707,7.53,210.28,210.07,18.49506942]
[1756478360903,7.53,210.28,210.08,12.52]
[1756478361108,7.53,210.28,210.07,18.49506942]
[1756478361512,7.53,210.27,210.08,11.74]
[1756478363207,14.28,210.26,210.07,18.49506942]
[1756478363718,14.28,210.24,210.04,11.7]
[1756478364015,7.53,210.23,210.04,30.19506942]
[1756478364513,7.53,210.23,210.04,100.71506942]
[1756478365202,7.53,210.23,210.05,129.26]
[1756478365403,7.53,210.23,210.06,79.94]
[1756478365612,7.53,210.23,210.04,18.49506942]
[1756478365812,7.53,210.23,210.05,77.16]
[1756478366009,7.53,210.29,210.09,18.49506942]
[1756478366408,133.12,210.32,210.14,18.49506942]
[1756478366614,5.13340319,210.57,210.21,18.49506942]
[1756478366813,18.49506942,210.48,210.21,18.49506942]
[1756478367006,7.53,210.46,210.21,18.49506942]
[1756478367410,39.82,210.45,210.22,11.72]
[1756478367612,7.53,210.43,210.21,18.49506942]
[1756478367806,7.53,210.43,210.22,11.72]
[1756478368313,7.53,210.43,210.21,18.49506942]
[1756478369306,7.53,210.43,210.22,11.68]
[1756478369512,7.53,210.43,210.23,19.06]
[1756478369815,7.53,210.43,210.23,23.72]
[1756478370114,7.53,210.44,210.21,18.49506942]
[1756478370309,25.54,210.45,210.22,24.4]
[1756478370509,25.54,210.45,210.21,18.49506942]
[1756478370903,7.53,210.44,210.21,18.49506942]
[1756478371111,25.54,210.45,210.22,11.66]
[1756478371305,7.53,210.44,210.22,11.66]
[1756478371512,7.53,210.44,210.26,18.49506942]
[1756478372610,32.77506942,210.47,210.22,10.64]
[1756478372810,14.28,210.43,210.21,18.49506942]
[1756478373209,14.28,210.42,210.21,18.49506942]
[1756478373413,7.53,210.41,210.21,18.49506942]
[1756478373614,25.4,210.4,210.16,18.49506942]
[1756478373809,7.53,210.38,210.16,151.31506942]
[1756478374007,25.4,210.4,210.16,18.49506942]
[1756478374208,7.53,210.38,210.16,18.49506942]
[1756478374414,7.53,210.38,210.21,18.49506942]
[1756478375313,7.53,210.38,210.26,18.49506942]
[1756478375520,7.53,210.47,210.26,18.49506942]
[1756478375718,7.53,210.46,210.26,18.49506942]
[1756478375914,11.38,210.47,210.26,18.49506942]
[1756478376218,7.53,210.46,210.26,18.49506942]
[1756478376513,7.27,210.46,210.26,18.49506942]
[1756478377615,7.27,210.46,210.27,18.92]
[1756478378022,7.27,210.46,210.31,18.49506942]
[1756478378716,7.27,210.52,210.31,18.49506942]
[1756478380315,110.86,210.53,210.31,33.93506942]
[1756478380618,14.28,210.51,210.31,18.49506942]
[1756478380811,21.55,210.49,210.27,18.49506942]
[1756478381013,14.28,210.47,210.16,319.54]
[1756478381211,21.55,210.42,210.2,18.49506942]
[1756478381420,7.27,210.39,210.2,18.49506942]
[1756478381620,7.27,210.38,210.2,18.49506942]
[1756478381821,7.27,210.37,210.16,319.54]
[1756478382022,14.28,210.38,210.16,319.54]
[1756478382419,7.27,210.37,210.2,18.49506942]
[1756478383326,7.27,210.42,210.21,114.44]
[1756478383624,7.27,210.42,210.25,18.49506942]
[1756478384825,7.27,210.51,210.3,18.49506942]
[1756478385025,319.54,210.52,210.25,18.49506942]
[1756478385026,15.62,210.5,210.25,18.49506942]
[1756478385218,7.27,210.49,210.25,18.49506942]
[1756478385421,18.49506942,210.48,210.25,18.49506942]
[1756478385624,14.28,210.47,210.25,18.49506942]
[1756478385818,18.49506942,210.48,210.2,18.49506942]
[1756478385819,14.28,210.46,210.2,18.49506942]
[1756478386025,7.27,210.45,210.22,11.6]
[1756478386323,14.28,210.46,210.22,11.6]
[1756478386523,7.27,210.45,210.22,11.6]
[1756478386720,7.27,210.45,210.2,18.49506942]
[1756478386920,14.28,210.46,210.2,18.49506942]
[1756478387128,14.28,210.46,210.21,132.22]
[1756478387427,7.27,210.45,210.25,18.49506942]
[1756478387621,7.27,210.45,210.3,18.49506942]
[1756478388526,7.27,210.45,210.23,3.93381785]
[1756478388729,7.27,210.45,210.29,18.49506942]
[1756478389127,7.27,210.5,210.3,61.86]
[1756478390031,7.27,210.5,210.29,18.49506942]
[1756478390326,7.27,210.49,210.29,18.49506942]
[1756478390527,7.27,210.48,210.29,18.49506942]
[1756478390927,14.28,210.48,210.26,23.8]
[1756478391120,14.28,210.48,210.25,42.29506942]
[1756478391324,7.27,210.46,210.25,18.49506942]
[1756478391731,7.27,210.45,210.25,18.49506942]
[1756478393432,7.27,210.45,210.25,22.42888727]
[1756478393727,7.27,210.44,210.22,3.93381785]
[1756478393935,21.55,210.44,210.22,3.93381785]
[1756478394232,21.55,210.39,210.15,22.42888727]
[1756478394525,131.82,210.45,210.04,10.57536249]
[1756478394526,18.49506942,210.3,210.09,3.93381785]
[1756478394734,18.49506942,210.3,210.05,18.49506942]
[1756478394735,72.97,210.29,210.06,3.93381785]
[1756478394928,72.97,210.29,210.04,3.93381785]
[1756478394929,18.49506942,210.27,210.04,3.93381785]
[1756478395128,7.27,210.26,210.05,3.93381785]
[1756478395329,119.7,210.25,210.05,3.93381785]
[1756478395530,7.27,210.21,210.03,319.48]
[1756478396031,21.55,210.17,209.94,182.74914877]
[1756478396333,7.27,210.15,209.94,178.81533092]
[1756478396529,7.27,210.12,209.94,178.81533092]
[1756478396832,7.27,210.12,209.95,3.93381785]
[1756478397035,44.75,210.18,209.99,3.93381785]
[1756478397227,44.75,210.18,209.98,3.93381785]
[1756478397426,44.75,210.18,209.97,3.93381785]
[1756478397628,44.75,210.18,209.98,3.93381785]
[1756478397833,44.75,210.18,209.97,126.83381785]
[1756478398128,30.47,210.18,209.98,3.93381785]
[1756478398336,30.47,210.18,209.97,122.9]
[1756478398531,7.27,210.14,209.94,182.74914877]
[1756478398726,7.27,210.14,209.94,178.81533092]
[1756478399032,7.27,210.14,209.96,3.93381785]
[1756478399236,7.27,210.14,209.97,3.93381785]
[1756478399832,7.27,210.14,209.96,3.93381785]
[1756478400333,14.28,210.14,209.94,178.81533092]
[1756478400533,7.27,210.06,209.85,3.93381785]
[1756478400838,7.27,210.05,209.86,82.22]
[1756478401033,7.27,210.05,209.83,3.93381785]